[Event "*** SCC Grand Prix: Titled Tuesday Blitz"]
[Site "Chess.com"]
[Date "2020.10.13"]
[Round "9"]
[White "dretch"]
[Black "WildBizon"]
[Result "0-1"]
[WhiteElo "2815"]
[BlackElo "2667"]
[TimeControl "180+1"]
[EndTime "11:44:30 PDT"]
[Termination "WildBizon won on time"]

1. d4 {[%clk 0:03:00.9]} 1... Nf6 {[%clk 0:02:58.4]} 2. c4 {[%clk 0:03:01]} 2...
g6 {[%clk 0:02:58.8]} 3. Nc3 {[%clk 0:03:01.4]} 3... d5 {[%clk 0:02:58.6]} 4. e3
{[%clk 0:03:00.2]} 4... Bg7 {[%clk 0:02:57.5]} 5. Qb3 {[%clk 0:03:00.8]} 5... c6
{[%clk 0:02:44.6]} 6. Nf3 {[%clk 0:02:54.8]} 6... O-O {[%clk 0:02:44.6]} 7. cxd5
{[%clk 0:02:43.7]} 7... cxd5 {[%clk 0:02:44.2]} 8. Be2 {[%clk 0:02:42.2]} 8...
Nc6 {[%clk 0:02:43.9]} 9. O-O {[%clk 0:02:42.2]} 9... Na5 {[%clk 0:02:42.7]} 10.
Qa3 {[%clk 0:02:36.8]} 10... Bf5 {[%clk 0:02:29.8]} 11. Ne5 {[%clk 0:02:27.6]}
11... Rc8 {[%clk 0:02:14.9]} 12. Bd2 {[%clk 0:02:25.9]} 12... a6 {[%clk
0:01:56.4]} 13. Nxd5 {[%clk 0:02:21.7]} 13... Qxd5 {[%clk 0:01:56.3]} 14. Bxa5
{[%clk 0:02:17.7]} 14... Ne4 {[%clk 0:01:46]} 15. Nd3 {[%clk 0:02:17.6]} 15...
Nd6 {[%clk 0:01:17.9]} 16. Nf4 {[%clk 0:02:05.9]} 16... Qc6 {[%clk 0:01:13.7]}
17. Bb4 {[%clk 0:02:05.9]} 17... Rfd8 {[%clk 0:01:11.3]} 18. h3 {[%clk
0:01:57.1]} 18... e5 {[%clk 0:01:07.8]} 19. Bf3 {[%clk 0:01:14.7]} 19... Be4
{[%clk 0:01:07.2]} 20. Bxd6 {[%clk 0:01:08.2]} 20... Bxf3 {[%clk 0:01:02.8]} 21.
dxe5 {[%clk 0:01:06.6]} 21... Be4 {[%clk 0:00:59.3]} 22. f3 {[%clk 0:00:59.2]}
22... Bc2 {[%clk 0:00:45.1]} 23. Rac1 {[%clk 0:00:56.6]} 23... Qb5 {[%clk
0:00:43.1]} 24. e4 {[%clk 0:00:14]} 24... Bxe5 {[%clk 0:00:36.5]} 25. Bxe5
{[%clk 0:00:14.9]} 25... Qxe5 {[%clk 0:00:35.2]} 26. Nd5 {[%clk 0:00:15.3]}
26... Qd4+ {[%clk 0:00:29.4]} 27. Kh1 {[%clk 0:00:11.7]} 27... Kg7 {[%clk
0:00:28.8]} 28. Qe3 {[%clk 0:00:08.5]} 28... Rxd5 {[%clk 0:00:27.1]} 29. Qe2
{[%clk 0:00:03.4]} 29... Rdc5 {[%clk 0:00:23.8]} 30. Rfe1 {[%clk 0:00:02.7]}
30... Bd3 {[%clk 0:00:20.9]} 31. Qd2 {[%clk 0:00:03]} 31... Rc2 {[%clk
0:00:17.6]} 32. Rxc2 {[%clk 0:00:01.4]} 32... Rxc2 {[%clk 0:00:16.4]} 33. Qg5
{[%clk 0:00:01.3]} 33... Qxb2 {[%clk 0:00:12.9]} 0-1

[Event "*** SCC Grand Prix: Titled Tuesday Blitz"]
[Site "Chess.com"]
[Date "2020.10.13"]
[Round "9"]
[White "ChelsieMonica"]
[Black "FMKonstantin_Twitch"]
[Result "0-1"]
[WhiteElo "2382"]
[BlackElo "2555"]
[TimeControl "180+1"]
[EndTime "11:44:30 PDT"]
[Termination "FMKonstantin_Twitch won by resignation"]

1. e4 {[%clk 0:03:00.8]} 1... d5 {[%clk 0:02:58.2]} 2. exd5 {[%clk 0:03:00.5]}
2... Qxd5 {[%clk 0:02:59.1]} 3. Nc3 {[%clk 0:03:00.1]} 3... Qe6+ {[%clk
0:02:59.4]} 4. Be2 {[%clk 0:02:53.6]} 4... Qg6 {[%clk 0:02:58.5]} 5. Bf3 {[%clk
0:02:51.5]} 5... Nc6 {[%clk 0:02:53.7]} 6. d4 {[%clk 0:02:43]} 6... Bf5 {[%clk
0:02:49.4]} 7. Nge2 {[%clk 0:02:13.5]} 7... O-O-O {[%clk 0:02:31.3]} 8. O-O
{[%clk 0:02:10.7]} 8... e5 {[%clk 0:02:21.8]} 9. d5 {[%clk 0:02:06.2]} 9... Nb4
{[%clk 0:02:11.4]} 10. Be3 {[%clk 0:02:00.4]} 10... Nxc2 {[%clk 0:02:00.9]} 11.
Bxa7 {[%clk 0:01:53]} 11... Nxa1 {[%clk 0:01:59.4]} 12. Qxa1 {[%clk 0:01:48.9]}
12... Qa6 {[%clk 0:01:59.3]} 13. Be3 {[%clk 0:01:46.8]} 13... Nf6 {[%clk
0:01:59.8]} 14. Ng3 {[%clk 0:01:39.3]} 14... Bd3 {[%clk 0:01:59.4]} 15. Rd1
{[%clk 0:01:38.7]} 15... Bb4 {[%clk 0:01:59.4]} 16. Qc1 {[%clk 0:01:30.7]} 16...
Rhe8 {[%clk 0:01:49.9]} 17. a3 {[%clk 0:01:00.1]} 17... Bd6 {[%clk 0:01:44.1]}
18. b4 {[%clk 0:00:49.4]} 18... e4 {[%clk 0:01:41.9]} 19. b5 {[%clk 0:00:48.9]}
19... Qxa3 {[%clk 0:01:40.6]} 20. Qxa3 {[%clk 0:00:41.7]} 20... Bxa3 {[%clk
0:01:41.5]} 21. Bg5 {[%clk 0:00:33.6]} 21... exf3 {[%clk 0:01:06.6]} 22. Rxd3
{[%clk 0:00:32]} 22... Re1+ {[%clk 0:01:05.7]} 23. Nf1 {[%clk 0:00:32]} 23...
fxg2 {[%clk 0:01:06.6]} 24. Kxg2 {[%clk 0:00:30.7]} 24... Bb4 {[%clk 0:01:06.7]}
25. Bxf6 {[%clk 0:00:26.5]} 25... gxf6 {[%clk 0:01:07.6]} 26. Nd1 {[%clk
0:00:26.6]} 26... c6 {[%clk 0:01:03.2]} 27. bxc6 {[%clk 0:00:25.4]} 27... bxc6
{[%clk 0:01:04.1]} 28. Nde3 {[%clk 0:00:25.6]} 28... cxd5 {[%clk 0:00:47.9]} 29.
Nxd5 {[%clk 0:00:24]} 29... Bc5 {[%clk 0:00:48.4]} 30. Nfe3 {[%clk 0:00:20.3]}
30... Bxe3 {[%clk 0:00:47]} 31. fxe3 {[%clk 0:00:21.2]} 31... Rd6 {[%clk
0:00:44.4]} 32. Rc3+ {[%clk 0:00:19.2]} 32... Kd8 {[%clk 0:00:43.6]} 33. Nf4
{[%clk 0:00:18.8]} 33... Rd2+ {[%clk 0:00:43.2]} 34. Kf3 {[%clk 0:00:19.1]}
34... Rxh2 {[%clk 0:00:38.9]} 35. Ke4 {[%clk 0:00:19.4]} 35... h5 {[%clk
0:00:35.2]} 36. Kf5 {[%clk 0:00:19.5]} 36... h4 {[%clk 0:00:36.1]} 37. Kxf6
{[%clk 0:00:19.6]} 37... h3 {[%clk 0:00:34.4]} 38. e4 {[%clk 0:00:18.5]} 38...
Rf2 {[%clk 0:00:33.2]} 39. Ke5 {[%clk 0:00:17.1]} 39... h2 {[%clk 0:00:32.9]}
40. Nd5 {[%clk 0:00:16.6]} 40... Rxe4+ {[%clk 0:00:30]} 41. Kd6 {[%clk
0:00:15.8]} 41... Re6+ {[%clk 0:00:30]} 42. Kc5 {[%clk 0:00:15]} 42... h1=Q
{[%clk 0:00:30.9]} 43. Rd3 {[%clk 0:00:15]} 43... Rc2+ {[%clk 0:00:30.5]} 44.
Nc3+ {[%clk 0:00:14.9]} 44... Kc8 {[%clk 0:00:29.2]} 0-1

[Event "*** SCC Grand Prix: Titled Tuesday Blitz"]
[Site "Chess.com"]
[Date "2020.10.13"]
[Round "9"]
[White "Sergienko_Sergey"]
[Black "EddieMarsalla"]
[Result "0-1"]
[WhiteElo "2397"]
[BlackElo "2562"]
[TimeControl "180+1"]
[EndTime "11:44:33 PDT"]
[Termination "EddieMarsalla won on time"]

1. e4 {[%clk 0:02:59.5]} 1... d5 {[%clk 0:03:00.9]} 2. exd5 {[%clk 0:02:59]}
2... Qxd5 {[%clk 0:03:01.8]} 3. Nc3 {[%clk 0:02:58.3]} 3... Qe5+ {[%clk
0:03:02.2]} 4. Be2 {[%clk 0:02:52.2]} 4... c6 {[%clk 0:03:02.5]} 5. d4 {[%clk
0:02:51.5]} 5... Qc7 {[%clk 0:03:03.4]} 6. Nf3 {[%clk 0:02:50.6]} 6... Bf5
{[%clk 0:03:04.3]} 7. O-O {[%clk 0:02:50.2]} 7... e6 {[%clk 0:03:04.8]} 8. Nh4
{[%clk 0:02:41]} 8... Bg6 {[%clk 0:03:03.9]} 9. Nxg6 {[%clk 0:02:39.3]} 9...
hxg6 {[%clk 0:03:04.8]} 10. h3 {[%clk 0:02:39.7]} 10... Nf6 {[%clk 0:03:05.1]}
11. Bf3 {[%clk 0:02:36.6]} 11... Nbd7 {[%clk 0:03:05.4]} 12. Qe2 {[%clk
0:02:32.9]} 12... Be7 {[%clk 0:03:05.4]} 13. Ne4 {[%clk 0:02:30.8]} 13... Nxe4
{[%clk 0:03:04.9]} 14. Qxe4 {[%clk 0:02:30]} 14... Nf6 {[%clk 0:03:05]} 15. Qe2
{[%clk 0:02:29.6]} 15... O-O {[%clk 0:03:02.9]} 16. c3 {[%clk 0:02:29.3]} 16...
Rad8 {[%clk 0:03:03]} 17. Re1 {[%clk 0:02:25.1]} 17... Rfe8 {[%clk 0:03:03.3]}
18. Bd2 {[%clk 0:02:22.2]} 18... c5 {[%clk 0:03:03.5]} 19. dxc5 {[%clk
0:02:18.2]} 19... Bxc5 {[%clk 0:03:04.4]} 20. Rad1 {[%clk 0:02:14.7]} 20... Qb6
{[%clk 0:03:02.5]} 21. Bc1 {[%clk 0:02:11]} 21... Rxd1 {[%clk 0:03:00.4]} 22.
Rxd1 {[%clk 0:02:10.9]} 22... a5 {[%clk 0:02:58.1]} 23. b3 {[%clk 0:02:04.6]}
23... Qc7 {[%clk 0:02:54.2]} 24. Qb5 {[%clk 0:01:52.1]} 24... b6 {[%clk
0:02:51.3]} 25. Bg5 {[%clk 0:01:46.4]} 25... Rd8 {[%clk 0:02:49.8]} 26. Rxd8+
{[%clk 0:01:40.1]} 26... Qxd8 {[%clk 0:02:50.7]} 27. b4 {[%clk 0:01:35.2]} 27...
axb4 {[%clk 0:02:50]} 28. cxb4 {[%clk 0:01:35.2]} 28... Bd4 {[%clk 0:02:49.8]}
29. a4 {[%clk 0:01:31.4]} 29... Bc3 {[%clk 0:02:47]} 30. Be3 {[%clk 0:01:26.4]}
30... Bd4 {[%clk 0:02:43.5]} 31. Qd3 {[%clk 0:01:11.9]} 31... e5 {[%clk
0:02:41.3]} 32. Bxd4 {[%clk 0:01:08.5]} 32... exd4 {[%clk 0:02:42.2]} 33. Be2
{[%clk 0:01:03.4]} 33... Qe7 {[%clk 0:02:40.1]} 34. Qb5 {[%clk 0:00:57.6]} 34...
Qc7 {[%clk 0:02:26.3]} 35. g3 {[%clk 0:00:45.4]} 35... Qc1+ {[%clk 0:02:24.7]}
36. Kg2 {[%clk 0:00:44.4]} 36... Kh7 {[%clk 0:02:21.3]} 37. Qxb6 {[%clk
0:00:33.1]} 37... Qd2 {[%clk 0:02:15.4]} 38. Qb5 {[%clk 0:00:30.7]} 38... Ne4
{[%clk 0:02:13.4]} 39. Qd3 {[%clk 0:00:26.5]} 39... Qxb4 {[%clk 0:02:08.8]} 40.
Qxe4 {[%clk 0:00:25.7]} 40... Qxa4 {[%clk 0:02:09.6]} 41. Qh4+ {[%clk 0:00:22]}
41... Kg8 {[%clk 0:02:09.5]} 42. Qd8+ {[%clk 0:00:21.1]} 42... Kh7 {[%clk
0:02:09.7]} 43. Qd5 {[%clk 0:00:20.5]} 43... f5 {[%clk 0:02:08.3]} 44. Bc4
{[%clk 0:00:19.1]} 44... Kh6 {[%clk 0:02:05.5]} 45. Qg8 {[%clk 0:00:15.8]} 45...
g5 {[%clk 0:02:01.6]} 46. Qe6+ {[%clk 0:00:12.8]} 46... g6 {[%clk 0:01:59.8]}
47. Qf7 {[%clk 0:00:11.3]} 47... Qa8+ {[%clk 0:01:57.1]} 48. Bd5 {[%clk
0:00:10.3]} 48... Qh8 {[%clk 0:01:58]} 49. Qe6 {[%clk 0:00:08]} 49... d3 {[%clk
0:01:55.2]} 50. Qe3 {[%clk 0:00:07.7]} 50... Qc3 {[%clk 0:01:53.5]} 51. Bf3
{[%clk 0:00:06.9]} 51... Qc2 {[%clk 0:01:48.2]} 52. h4 {[%clk 0:00:06.7]} 52...
d2 {[%clk 0:01:47.8]} 53. Qxg5+ {[%clk 0:00:06.6]} 53... Kg7 {[%clk 0:01:48.1]}
54. h5 {[%clk 0:00:06.5]} 54... d1=Q {[%clk 0:01:47.3]} 55. Qxg6+ {[%clk
0:00:06]} 55... Kh8 {[%clk 0:01:46.9]} 56. Bxd1 {[%clk 0:00:06.1]} 56... Qxd1
{[%clk 0:01:46.4]} 57. Qxf5 {[%clk 0:00:06.1]} 57... Kg7 {[%clk 0:01:46.8]} 58.
Qg5+ {[%clk 0:00:05.8]} 58... Kh8 {[%clk 0:01:47.2]} 59. Qh6+ {[%clk 0:00:05.4]}
59... Kg8 {[%clk 0:01:46.9]} 60. Qg6+ {[%clk 0:00:05.4]} 60... Kh8 {[%clk
0:01:47.1]} 61. Qf5 {[%clk 0:00:05.4]} 61... Qa4 {[%clk 0:01:44.1]} 62. g4
{[%clk 0:00:05.4]} 62... Qa8+ {[%clk 0:01:43.9]} 63. Qf3 {[%clk 0:00:04.9]}
63... Qg8 {[%clk 0:01:44.3]} 64. Qf5 {[%clk 0:00:04.4]} 64... Qa8+ {[%clk
0:01:43.5]} 65. Qf3 {[%clk 0:00:03.6]} 65... Qb8 {[%clk 0:01:43.1]} 66. Kg1
{[%clk 0:00:01.9]} 66... Qb1+ {[%clk 0:01:42.7]} 67. Kg2 {[%clk 0:00:01.4]}
67... Qb8 {[%clk 0:01:43.6]} 68. Qf6+ {[%clk 0:00:01.2]} 68... Kg8 {[%clk
0:01:43.2]} 69. Qg6+ {[%clk 0:00:01.7]} 69... Kh8 {[%clk 0:01:43.5]} 70. h6
{[%clk 0:00:02.1]} 70... Qa8+ {[%clk 0:01:43.7]} 0-1

[Event "*** SCC Grand Prix: Titled Tuesday Blitz"]
[Site "Chess.com"]
[Date "2020.10.13"]
[Round "9"]
[White "Chessbard1972"]
[Black "jamalm2"]
[Result "1-0"]
[WhiteElo "2340"]
[BlackElo "1796"]
[TimeControl "180+1"]
[EndTime "11:44:34 PDT"]
[Termination "Chessbard1972 won on time"]

1. e4 {[%clk 0:02:51.4]} 1... c5 {[%clk 0:02:57.4]} 2. d4 {[%clk 0:02:50.3]}
2... cxd4 {[%clk 0:02:56.1]} 3. c3 {[%clk 0:02:50.8]} 3... dxc3 {[%clk
0:02:54.9]} 4. Nxc3 {[%clk 0:02:50.2]} 4... d6 {[%clk 0:02:53.1]} 5. Bc4 {[%clk
0:02:48.9]} 5... Nf6 {[%clk 0:02:51.1]} 6. h3 {[%clk 0:02:44.5]} 6... Nc6 {[%clk
0:02:48.6]} 7. Nf3 {[%clk 0:02:43.9]} 7... e6 {[%clk 0:02:36.8]} 8. O-O {[%clk
0:02:42.3]} 8... Be7 {[%clk 0:02:35.7]} 9. Qe2 {[%clk 0:02:41.8]} 9... a6 {[%clk
0:02:30.6]} 10. a4 {[%clk 0:02:40.3]} 10... Qc7 {[%clk 0:02:28.5]} 11. Bf4
{[%clk 0:02:37.3]} 11... O-O {[%clk 0:02:26.2]} 12. Rac1 {[%clk 0:02:36.1]}
12... Nd7 {[%clk 0:02:06.3]} 13. Ba2 {[%clk 0:02:25.4]} 13... Qa5 {[%clk
0:01:55.8]} 14. Rfd1 {[%clk 0:02:20.8]} 14... Nde5 {[%clk 0:01:52.2]} 15. Nd4
{[%clk 0:02:17.9]} 15... Nxd4 {[%clk 0:01:49.4]} 16. Rxd4 {[%clk 0:02:17.3]}
16... Bd7 {[%clk 0:01:43]} 17. Be3 {[%clk 0:02:14.1]} 17... Bc6 {[%clk
0:01:39.3]} 18. b4 {[%clk 0:02:12.7]} 18... Qd8 {[%clk 0:01:28.3]} 19. f4 {[%clk
0:02:06.9]} 19... Ng6 {[%clk 0:01:17]} 20. b5 {[%clk 0:02:06.1]} 20... axb5
{[%clk 0:01:07.7]} 21. axb5 {[%clk 0:02:05.5]} 21... Bd7 {[%clk 0:00:51.2]} 22.
Rd2 {[%clk 0:01:59.1]} 22... e5 {[%clk 0:00:47.2]} 23. Nd5 {[%clk 0:01:53]}
23... Be6 {[%clk 0:00:42.3]} 24. f5 {[%clk 0:01:45.8]} 24... Bxd5 {[%clk
0:00:41.3]} 25. Bxd5 {[%clk 0:01:40]} 25... Nf4 {[%clk 0:00:37.8]} 26. Bxf4
{[%clk 0:01:23.2]} 26... exf4 {[%clk 0:00:36.9]} 27. Bxb7 {[%clk 0:01:22.9]}
27... Qb6+ {[%clk 0:00:30.1]} 28. Qf2 {[%clk 0:01:18.6]} 28... Qxb7 {[%clk
0:00:28.2]} 29. Rb1 {[%clk 0:01:17]} 29... h6 {[%clk 0:00:21.3]} 30. Rd5 {[%clk
0:01:14.3]} 30... Ra3 {[%clk 0:00:17.7]} 31. Qxf4 {[%clk 0:01:11.8]} 31... Qb6+
{[%clk 0:00:15.7]} 32. Kh1 {[%clk 0:01:05.4]} 32... Rfa8 {[%clk 0:00:15.1]} 33.
Rdd1 {[%clk 0:00:56.4]} 33... Ra2 {[%clk 0:00:13]} 34. Qg4 {[%clk 0:00:54.9]}
34... Bg5 {[%clk 0:00:11.6]} 35. h4 {[%clk 0:00:53.6]} 35... Bf6 {[%clk
0:00:11]} 36. Re1 {[%clk 0:00:40.5]} 36... Rf2 {[%clk 0:00:08.7]} 37. Rec1
{[%clk 0:00:35.5]} 37... Raa2 {[%clk 0:00:07.4]} 38. Rg1 {[%clk 0:00:34.2]}
38... Qe3 {[%clk 0:00:03.1]} 39. Rbe1 {[%clk 0:00:32.2]} 1-0

[Event "*** SCC Grand Prix: Titled Tuesday Blitz"]
[Site "Chess.com"]
[Date "2020.10.13"]
[Round "9"]
[White "Fandorine"]
[Black "Beltsychess"]
[Result "1-0"]
[WhiteElo "2858"]
[BlackElo "2648"]
[TimeControl "180+1"]
[EndTime "11:44:35 PDT"]
[Termination "Fandorine won by resignation"]

1. e4 {[%clk 0:03:00.9]} 1... Nf6 {[%clk 0:02:59.3]} 2. d3 {[%clk 0:03:00.3]}
2... d5 {[%clk 0:02:58.4]} 3. e5 {[%clk 0:02:59.2]} 3... Nfd7 {[%clk 0:02:57.8]}
4. d4 {[%clk 0:02:58.5]} 4... Nb6 {[%clk 0:02:57.8]} 5. Bd3 {[%clk 0:02:56.9]}
5... Nc6 {[%clk 0:02:56.6]} 6. c3 {[%clk 0:02:57.2]} 6... g6 {[%clk 0:02:50.6]}
7. f4 {[%clk 0:02:57.3]} 7... Bf5 {[%clk 0:02:41.3]} 8. Nf3 {[%clk 0:02:57.3]}
8... Bxd3 {[%clk 0:02:39.5]} 9. Qxd3 {[%clk 0:02:58.2]} 9... e6 {[%clk
0:02:39.8]} 10. O-O {[%clk 0:02:58.9]} 10... h5 {[%clk 0:02:31.2]} 11. Nbd2
{[%clk 0:02:56.9]} 11... Ne7 {[%clk 0:02:30.8]} 12. Ng5 {[%clk 0:02:56.6]} 12...
Nf5 {[%clk 0:02:30.3]} 13. a4 {[%clk 0:02:55.6]} 13... c5 {[%clk 0:02:23.2]} 14.
a5 {[%clk 0:02:49.7]} 14... Nd7 {[%clk 0:02:18.5]} 15. Ndf3 {[%clk 0:02:46.6]}
15... c4 {[%clk 0:02:14.9]} 16. Qc2 {[%clk 0:02:45.9]} 16... Qc7 {[%clk
0:02:04.7]} 17. g3 {[%clk 0:02:38.5]} 17... Rc8 {[%clk 0:02:03.3]} 18. Kg2
{[%clk 0:02:36.9]} 18... Be7 {[%clk 0:02:01.8]} 19. Bd2 {[%clk 0:02:33.4]} 19...
Nb8 {[%clk 0:01:56.4]} 20. h3 {[%clk 0:02:28.9]} 20... Nc6 {[%clk 0:01:26.6]}
21. Qa4 {[%clk 0:02:24.1]} 21... Qd7 {[%clk 0:00:59.2]} 22. Rh1 {[%clk
0:02:21.2]} 22... Bxg5 {[%clk 0:00:48.5]} 23. Nxg5 {[%clk 0:02:15.5]} 23... Qe7
{[%clk 0:00:43.1]} 24. g4 {[%clk 0:02:07.1]} 24... Ng7 {[%clk 0:00:30.7]} 25.
Qb5 {[%clk 0:02:04]} 25... a6 {[%clk 0:00:26.5]} 26. Qa4 {[%clk 0:02:03.6]}
26... Qd7 {[%clk 0:00:20.6]} 27. b3 {[%clk 0:01:48.3]} 27... cxb3 {[%clk
0:00:19.8]} 28. Qxb3 {[%clk 0:01:49.2]} 28... Na7 {[%clk 0:00:19.4]} 29. Rhb1
{[%clk 0:01:13.4]} 29... Nb5 {[%clk 0:00:18.2]} 30. Ra4 {[%clk 0:01:13.9]} 30...
Qc6 {[%clk 0:00:17.1]} 31. Rb4 {[%clk 0:01:12.5]} 31... hxg4 {[%clk 0:00:15.8]}
32. hxg4 {[%clk 0:01:07.7]} 32... Ke7 {[%clk 0:00:14.9]} 33. Rxb5 {[%clk
0:01:03.2]} 33... Qxb5 {[%clk 0:00:12.3]} 34. Qxb5 {[%clk 0:01:04.1]} 34... axb5
{[%clk 0:00:11.7]} 35. Rxb5 {[%clk 0:01:05]} 35... Rc7 {[%clk 0:00:11.8]} 36.
Bc1 {[%clk 0:01:03]} 36... Rhc8 {[%clk 0:00:11.4]} 37. Ba3+ {[%clk 0:01:01.6]}
37... Ke8 {[%clk 0:00:11.8]} 38. Bb4 {[%clk 0:00:55.1]} 38... Kd8 {[%clk
0:00:10.8]} 39. Rb6 {[%clk 0:00:41.8]} 39... Ne8 {[%clk 0:00:10.6]} 40. a6
{[%clk 0:00:41.4]} 40... bxa6 {[%clk 0:00:10.4]} 41. Rxa6 {[%clk 0:00:42.3]}
41... Rxc3 {[%clk 0:00:10.4]} 42. Nxf7+ {[%clk 0:00:38.6]} 42... Kd7 {[%clk
0:00:10.6]} 43. Bxc3 {[%clk 0:00:38.9]} 43... Rxc3 {[%clk 0:00:10.7]} 44. Ra7+
{[%clk 0:00:34.8]} 44... Nc7 {[%clk 0:00:08.5]} 45. Ng5 {[%clk 0:00:35.3]} 45...
Rc4 {[%clk 0:00:08.6]} 46. Kf2 {[%clk 0:00:34.2]} 46... Rxd4 {[%clk 0:00:08]}
47. Rxc7+ {[%clk 0:00:34.1]} 1-0

[Event "*** SCC Grand Prix: Titled Tuesday Blitz"]
[Site "Chess.com"]
[Date "2020.10.13"]
[Round "9"]
[White "tandaleo"]
[Black "annacramling"]
[Result "1-0"]
[WhiteElo "2348"]
[BlackElo "2009"]
[TimeControl "180+1"]
[EndTime "11:44:36 PDT"]
[Termination "tandaleo won by checkmate"]

1. Nf3 {[%clk 0:02:47.1]} 1... c5 {[%clk 0:02:55.4]} 2. b3 {[%clk 0:02:44.4]}
2... Nc6 {[%clk 0:02:50.2]} 3. Bb2 {[%clk 0:02:44.7]} 3... d5 {[%clk 0:02:48]}
4. e3 {[%clk 0:02:43.9]} 4... Nf6 {[%clk 0:02:33.7]} 5. c4 {[%clk 0:02:43.8]}
5... d4 {[%clk 0:02:32.5]} 6. exd4 {[%clk 0:02:28.6]} 6... cxd4 {[%clk
0:02:32.4]} 7. g3 {[%clk 0:02:28.7]} 7... e5 {[%clk 0:02:30.9]} 8. d3 {[%clk
0:02:25.9]} 8... Bb4+ {[%clk 0:02:11.3]} 9. Nbd2 {[%clk 0:02:25.4]} 9... e4
{[%clk 0:01:59.5]} 10. dxe4 {[%clk 0:01:54.2]} 10... Nxe4 {[%clk 0:01:54.8]} 11.
a3 {[%clk 0:00:57]} 11... Bc3 {[%clk 0:01:23.2]} 12. Qc2 {[%clk 0:00:47.3]}
12... Qe7 {[%clk 0:01:02.3]} 13. O-O-O {[%clk 0:00:46.2]} 13... Bxd2+ {[%clk
0:00:27.7]} 14. Nxd2 {[%clk 0:00:45]} 14... Nxf2 {[%clk 0:00:25.9]} 15. Bg2
{[%clk 0:00:29.7]} 15... Nxd1 {[%clk 0:00:25.6]} 16. Rxd1 {[%clk 0:00:21.7]}
16... O-O {[%clk 0:00:25.6]} 17. Be4 {[%clk 0:00:19.7]} 17... h6 {[%clk
0:00:20.1]} 18. Nf3 {[%clk 0:00:10.1]} 18... f5 {[%clk 0:00:08]} 19. Bd5+ {[%clk
0:00:08.6]} 19... Kh7 {[%clk 0:00:07.8]} 20. Nxd4 {[%clk 0:00:08.1]} 20... Qe3+
{[%clk 0:00:06.6]} 21. Kb1 {[%clk 0:00:07.4]} 21... Nxd4 {[%clk 0:00:04.3]} 22.
Bxd4 {[%clk 0:00:07.5]} 22... Qe7 {[%clk 0:00:03.6]} 23. Qf2 {[%clk 0:00:06.6]}
23... Qxa3 {[%clk 0:00:03.2]} 24. Bc5 {[%clk 0:00:06]} 24... Qxb3+ {[%clk
0:00:03.6]} 25. Qb2 {[%clk 0:00:06.9]} 25... Qxd1+ {[%clk 0:00:03.6]} 26. Ka2
{[%clk 0:00:07.6]} 26... Qa4+ {[%clk 0:00:03.8]} 27. Kb1 {[%clk 0:00:08]} 27...
Qd1+ {[%clk 0:00:03.8]} 28. Ka2 {[%clk 0:00:08.3]} 28... Qg4 {[%clk 0:00:03.7]}
29. Bxf8 {[%clk 0:00:08.2]} 29... Bd7 {[%clk 0:00:03.4]} 30. Qxb7 {[%clk
0:00:06.2]} 30... Re8 {[%clk 0:00:02.3]} 31. Qxd7 {[%clk 0:00:05.5]} 31... Re2+
{[%clk 0:00:03]} 32. Ka3 {[%clk 0:00:05.9]} 32... Qf4 {[%clk 0:00:02.7]} 33.
gxf4 {[%clk 0:00:05.1]} 33... Re3+ {[%clk 0:00:03.1]} 34. Kb4 {[%clk 0:00:05.1]}
34... Re2 {[%clk 0:00:01.3]} 35. Qxg7# {[%clk 0:00:05.2]} 1-0

[Event "*** SCC Grand Prix: Titled Tuesday Blitz"]
[Site "Chess.com"]
[Date "2020.10.13"]
[Round "9"]
[White "BJthechessgod"]
[Black "korkmaz16"]
[Result "0-1"]
[WhiteElo "2247"]
[BlackElo "2377"]
[TimeControl "180+1"]
[EndTime "11:44:37 PDT"]
[Termination "korkmaz16 won by resignation"]

1. e4 {[%clk 0:03:00.9]} 1... e6 {[%clk 0:02:59.3]} 2. d4 {[%clk 0:03:00.9]}
2... d5 {[%clk 0:02:59.8]} 3. Nc3 {[%clk 0:03:01.8]} 3... Nf6 {[%clk 0:03:00]}
4. e5 {[%clk 0:02:47.8]} 4... Nfd7 {[%clk 0:02:59.5]} 5. f4 {[%clk 0:02:48.7]}
5... c5 {[%clk 0:02:59.4]} 6. Nf3 {[%clk 0:02:49.6]} 6... Nc6 {[%clk 0:02:59.6]}
7. Be3 {[%clk 0:02:50.1]} 7... Qb6 {[%clk 0:02:59.9]} 8. a4 {[%clk 0:02:44.1]}
8... a6 {[%clk 0:02:58]} 9. Rb1 {[%clk 0:02:29.2]} 9... cxd4 {[%clk 0:02:57.4]}
10. Bxd4 {[%clk 0:02:26.3]} 10... Nxd4 {[%clk 0:02:57.5]} 11. Nxd4 {[%clk
0:02:27.2]} 11... Bc5 {[%clk 0:02:57.2]} 12. Nce2 {[%clk 0:02:20.5]} 12... O-O
{[%clk 0:02:51.6]} 13. c3 {[%clk 0:02:17.9]} 13... f6 {[%clk 0:02:49.9]} 14.
exf6 {[%clk 0:02:08.9]} 14... Nxf6 {[%clk 0:02:49.2]} 15. b4 {[%clk 0:02:08.1]}
15... Bd6 {[%clk 0:02:45.7]} 16. g3 {[%clk 0:01:59.2]} 16... e5 {[%clk
0:02:43.1]} 17. fxe5 {[%clk 0:01:52.3]} 17... Bxe5 {[%clk 0:02:43.2]} 18. Nf3
{[%clk 0:01:52.2]} 18... Ng4 {[%clk 0:02:39.2]} 19. Nxe5 {[%clk 0:01:37.9]}
19... Qf2+ {[%clk 0:02:24.8]} 20. Kd2 {[%clk 0:01:37.5]} 20... Qe3+ {[%clk
0:02:25.5]} 21. Kc2 {[%clk 0:01:36.4]} 21... Qxe5 {[%clk 0:02:21.6]} 22. Qd4
{[%clk 0:01:29.5]} 22... Bf5+ {[%clk 0:02:14.3]} 23. Kb2 {[%clk 0:01:26]} 23...
Qxd4 {[%clk 0:02:13.6]} 24. Nxd4 {[%clk 0:01:25.7]} 24... Bxb1 {[%clk
0:02:13.8]} 25. Kxb1 {[%clk 0:01:26.5]} 25... Rac8 {[%clk 0:02:07.9]} 26. Bg2
{[%clk 0:01:24.7]} 26... Rxc3 {[%clk 0:02:00]} 27. Bxd5+ {[%clk 0:01:23.5]}
27... Kh8 {[%clk 0:01:59]} 28. Ne6 {[%clk 0:01:23.1]} 28... Re8 {[%clk
0:01:52.3]} 29. Kb2 {[%clk 0:01:15.6]} 29... Re3 {[%clk 0:01:45.1]} 30. Ng5
{[%clk 0:01:09.6]} 30... Re2+ {[%clk 0:01:33.4]} 31. Kb3 {[%clk 0:01:04.4]}
31... R8e3+ {[%clk 0:01:20.4]} 32. Kc4 {[%clk 0:00:58.8]} 32... Rc2+ {[%clk
0:01:17.8]} 33. Kd4 {[%clk 0:00:57.5]} 33... Rd2+ {[%clk 0:01:16.5]} 34. Kc5
{[%clk 0:00:55.4]} 34... b6+ {[%clk 0:01:04]} 35. Kd6 {[%clk 0:00:46.8]} 35...
Nf6 {[%clk 0:00:46.3]} 36. Nf7+ {[%clk 0:00:43.5]} 36... Kg8 {[%clk 0:00:43.9]}
37. Ng5+ {[%clk 0:00:38.8]} 37... Kf8 {[%clk 0:00:42.2]} 38. Ne6+ {[%clk
0:00:38.8]} 38... Rxe6+ {[%clk 0:00:41.5]} 39. Kxe6 {[%clk 0:00:35.9]} 39...
Rxd5 {[%clk 0:00:37.2]} 40. Rc1 {[%clk 0:00:34.6]} 40... Rd4 {[%clk 0:00:32.4]}
41. Rc8+ {[%clk 0:00:27.9]} 41... Ne8 {[%clk 0:00:31.9]} 42. Ra8 {[%clk
0:00:22.5]} 42... Rxb4 {[%clk 0:00:30.7]} 43. Kd7 {[%clk 0:00:22.7]} 43... Rd4+
{[%clk 0:00:28.3]} 44. Ke6 {[%clk 0:00:21.1]} 44... a5 {[%clk 0:00:28.8]} 45.
Ra6 {[%clk 0:00:17.6]} 45... Nc7+ {[%clk 0:00:28.1]} 46. Ke5 {[%clk 0:00:18.2]}
46... Nxa6 {[%clk 0:00:22.6]} 47. Kxd4 {[%clk 0:00:19.1]} 47... Nc7 {[%clk
0:00:22.8]} 48. Ke5 {[%clk 0:00:17.7]} 48... Ke7 {[%clk 0:00:23.1]} 49. Kd4
{[%clk 0:00:17.8]} 49... Kd6 {[%clk 0:00:23.2]} 50. Kc4 {[%clk 0:00:18.7]} 50...
Kc6 {[%clk 0:00:22]} 0-1